fUST/lending_fUST_20240620
["ID","MTS","AMOUNT","RATE_DAILY","PERIOD"]
[329920243,1718832641932,-500.0,0.00024657,5]
[329920244,1718832641941,-1013.63,0.00024657,5]
[329920246,1718832641951,-500.0,0.00024657,5]
[329920248,1718832641960,-518.19,0.0002492,3]
[329920250,1718832641970,-3195.10138309,0.0002493,2]
[329920252,1718832641979,-4608.59806696,0.0002493,7]
[329920254,1718832641990,-500.0,0.0002493,5]
[329920255,1718832641999,-557.84,0.00024931,5]
[329920257,1718832642008,-584.63865965,0.00024931,5]
[329920259,1718832642018,-500.0,0.00024931,5]
[329920261,1718832642027,-500.0,0.00024931,5]
[329920262,1718832642036,-500.0,0.00024931,5]
[329920263,1718832642045,-500.0,0.00024931,5]
[329920265,1718832642055,-630.74,0.00024931,5]
[329920267,1718832642064,-2813.31,0.00024931,5]
[329920269,1718832642073,-500.0,0.00024931,5]
[329920271,1718832642082,-500.0,0.00024931,5]
[329920273,1718832642091,-500.0,0.00024931,5]
[329920275,1718832642100,-500.0,0.00024931,5]
[329920276,1718832642109,-1419.9,0.00024931,5]
[329920278,1718832642118,-2903.76,0.00024931,5]
[329920280,1718832642127,-500.0,0.00024931,5]
[329920282,1718832642136,-500.0,0.00024931,5]
[329920284,1718832642145,-699.29,0.00024931,5]
[329920286,1718832642154,-1027.01,0.00024931,5]
[329920288,1718832642163,-500.0,0.00024931,5]
[329920290,1718832642172,-500.0,0.00024931,5]
[329920292,1718832642181,-649.43,0.00024931,5]
[329920294,1718832642190,-500.0,0.00024931,5]
[329920296,1718832642200,-1361.8,0.00024931,5]
[329920298,1718832642210,-650.84,0.00024931,5]
[329920300,1718832642219,-500.0,0.00024931,5]
[329920302,1718832642228,-500.0,0.00024931,5]
[329920303,1718832642237,-4365.5,0.00024931,5]
[329920305,1718832642246,-629.13,0.00024931,5]
[329920307,1718832642255,-500.0,0.00024931,5]
[329920309,1718832642265,-500.0,0.00024931,5]
[329920311,1718832642274,-500.0,0.00024931,5]
[329920313,1718832642283,-1202.45257887,0.00024931,5]
[329920404,1718832643924,-0.00252277,0.00024931,5]
[329920423,1718832644036,-36.11489836,0.00024931,5]
[329920424,1718832644045,-500.0,0.00024931,5]
[329920425,1718832644054,-84.55253025,0.00024931,5]
[329920426,1718832644066,-415.44746975,0.00024931,5]
[329920427,1718832644075,-593.12,0.00024931,5]
[329920428,1718832644085,-818.72,0.00024931,5]
[329920429,1718832644094,-526.85,0.00024931,5]
[329920430,1718832644103,-246.93727881,0.00024931,5]
[329921043,1718832674282,155.25105694,9.999e-05,2]
[329921044,1718832674308,508.35365166,9.999e-05,2]
[329921412,1718833640157,-539.59557086,0.00019,2]
[329921413,1718833640178,-322.30760024,0.00021022,2]
[329921472,1718833645130,-218.7235122,0.00021022,2]
[329921540,1718833656972,251.02365084,9.999e-05,2]
[329921541,1718833657006,49.50966068,9.999e-05,2]
[329921571,1718833657932,361.79342468,9.999e-05,2]
[329921573,1718833657964,273.03505574,9.999e-05,2]
[329921576,1718833657996,411.30308536,9.999e-05,2]
[329921578,1718833658026,411.30308536,9.999e-05,2]
[329921580,1718833658055,161.23441781,9.999e-05,2]
[329921582,1718833658085,276.0229771,9.999e-05,2]
[329921584,1718833658111,201.92036557,9.999e-05,2]
[329921604,1718833658547,19329.17579556,9.999e-05,2]
[329921625,1718833662452,180.57898176,9.999e-05,2]
[329921626,1718833662556,155.11104322,9.999e-05,2]
[329921764,1718833676537,19316.33631142,9.999e-05,2]
[329921765,1718833680552,172.99379975,9.999e-05,2]
[329921823,1718833694953,300.56413617,9.999e-05,2]
[329921824,1718833708968,208.69436288,9.999e-05,2]
[329921825,1718833722275,265.91421192,9.999e-05,2]
[329921859,1718833832007,-309.35808118,0.00019,2]
[329921860,1718833832018,-89.44191882,0.00020537,2]
[329921862,1718833832031,-176.4722931,0.00020537,2]
[329921863,1718833832041,-252.264739,0.00020538,2]
[329921864,1718833832054,-1347.88838877,0.0002102,2]
[329921865,1718833832064,-698.80502438,0.0002102,2]
[329921866,1718833832073,-1461.5287002,0.0002102,2]
[329921867,1718833832082,-412.02215163,0.0002102,2]
[329921869,1718833832092,-300.99141008,0.0002102,2]
[329921871,1718833832101,-674.80913402,0.00021021,2]
[329921873,1718833832111,-17191.57394654,0.00021022,2]
[329921893,1718833840419,-7167.39494102,0.00021022,2]
[329921894,1718833840431,-348.727064,0.00021096,2]
[329921895,1718833840443,-205.68611055,0.00021497,2]
[329921896,1718833840454,-166.6666677,0.00021918,2]
[329921897,1718833840465,-1188.35993018,0.00021998,2]
[329921898,1718833840476,-160.69914924,0.00021999,2]
[329921899,1718833840490,-11620.90976734,0.00022,2]
[329921900,1718833840502,-153.0,0.00023002,2]
[329921901,1718833840513,-153.0,0.00023002,2]
[329921902,1718833840524,-153.0,0.00023002,2]
[329921903,1718833840536,-153.0,0.00023002,2]
[329921904,1718833840548,-153.0,0.00023002,2]
[329921905,1718833840561,-153.0,0.00023002,2]
[329921906,1718833840572,-153.0,0.00023002,2]
[329921907,1718833840583,-153.0,0.00023002,2]
[329921908,1718833840595,-153.0,0.00023002,2]
[329921909,1718833840607,-153.0,0.00023002,2]
[329921910,1718833840619,-153.0,0.00023002,2]
[329921911,1718833840632,-153.0,0.00023002,2]
[329921912,1718833840644,-153.0,0.00023002,2]
[329921913,1718833840655,-153.0,0.00023002,2]
[329921914,1718833840665,-153.0,0.00023002,2]
[329921915,1718833840676,-153.0,0.00023002,2]
[329921916,1718833840686,-153.0,0.00023002,2]
[329921917,1718833840696,-153.0,0.00023002,2]
[329921918,1718833840706,-833.7,0.00023564,5]
[329921919,1718833840717,-5286.77098289,0.00024,2]
[329921920,1718833841779,155.25105694,9.999e-05,2]
[329921921,1718833841806,235.14376078,9.999e-05,2]
[329921922,1718833841835,130.80712459,9.999e-05,2]
[329921928,1718833843677,-2137.53046726,0.00024,2]
[329921942,1718833846586,-265.91421192,0.00023999,2]
[329921943,1718833846599,-32575.69854985,0.00024,2]
[329921944,1718833846609,-180.41877063,0.00024459,2]
[329921945,1718833846618,-5272.58203083,0.00024538,2]
[329921946,1718833846627,-152.7044776,0.00024621,2]
[329921947,1718833846635,-643.02010459,0.00024646,2]
[329921948,1718833846644,-500.0,0.00024657,5]
[329921949,1718833846654,-500.0,0.00024657,5]
[329921950,1718833846663,-500.0,0.00024657,5]
[329921951,1718833846672,-500.0,0.00024657,5]
[329921952,1718833846681,-500.0,0.00024657,5]
[329921953,1718833846691,-500.0,0.00024657,5]
[329921954,1718833846700,-689.5934882,0.00024657,5]
[329921958,1718833895330,25082.11634676,9.999e-05,2]
[329921962,1718834462459,3293.37687449,9.999e-05,2]
[329921963,1718834469849,265.91421192,9.999e-05,2]
[329921964,1718834482831,521.20194231,9.999e-05,2]
[329921967,1718834826148,-521.20194231,0.00014998,2]
[329921968,1718834826170,-265.91421192,0.00014999,2]
[329921969,1718834826192,-155.25105694,0.00015,2]
[329921970,1718834826214,-0.23075413,0.00017568,2]
[329921994,1718835032373,-529.56917027,0.00017467,2]
[329921995,1718835032384,-2138.42672113,0.00017468,2]
[329921996,1718835032394,-265.70410248,0.00017567,2]
[329921997,1718835032403,-260.95107752,0.00017568,2]
[329921998,1718835032414,-3057.26,0.00017568,2]
[329922005,1718835032544,-32179.39731344,0.00017568,2]
[329922007,1718835032554,-314.41287787,0.00017568,2]
[329922009,1718835032565,-24900.0,0.00017569,2]
[329922010,1718835032574,-170.38386991,0.000189,2]
[329922011,1718835032583,-678.5979653,0.0001897,2]
[329922012,1718835032593,-2878.23665169,0.00018971,2]
[329922013,1718835032602,-539.59557086,0.00019,2]
[329922014,1718835032611,-450.0,0.00019178,2]
[329922016,1718835032622,-7387.6,0.0002,2]
[329922017,1718835032631,-482.39629157,0.0002,2]
[329922019,1718835032641,-6137.40222644,0.0002,2]
[329922021,1718835032653,-2473.48495548,0.0002,2]
[329922022,1718835032664,-334.86214888,0.0002,2]
[329922037,1718835038274,-9708.22567283,0.0002,2]
[329922038,1718835038284,-331.29071,0.00021096,2]
[329922039,1718835038295,-225.33972,0.00021096,2]
[329922040,1718835038304,-153.0,0.00022934,2]
[329922041,1718835038314,-153.0,0.00022934,2]
[329922042,1718835038324,-153.0,0.00022939,2]
[329922043,1718835038333,-153.0,0.00023002,2]
[329922045,1718835038346,-153.0,0.00023002,2]
[329922047,1718835038356,-153.0,0.00023002,2]
[329922049,1718835038365,-153.0,0.00023002,2]
[329922050,1718835038374,-153.0,0.00023002,2]
[329922051,1718835038383,-153.0,0.00023002,2]
[329922052,1718835038392,-153.0,0.00023002,2]
[329922053,1718835038401,-153.0,0.00023002,2]
[329922054,1718835038411,-842.5,0.00023585,5]
[329922055,1718835038424,-153.0,0.00023775,2]
[329922056,1718835038434,-153.0,0.00023775,2]
[329922057,1718835038443,-153.0,0.00023775,2]
[329922058,1718835038453,-4980.67013883,0.00024113,2]
[329922059,1718835038463,-2892.52402925,0.000245,30]
[329922060,1718835038472,-1303.83029047,0.0002463,2]
[329922061,1718835038482,-722.06198513,0.00024654,2]
[329922062,1718835038586,-1501.26270931,0.00024654,2]
[329922063,1718835038627,-155.14543531,0.00024654,2]
[329922064,1718835038636,-471.01249892,0.00024654,2]
[329922065,1718835038646,-197.04847737,0.00024654,2]
[329922066,1718835038655,-6614.08315279,0.00024654,2]
[329922067,1718835038665,-151.0,0.00024654,2]
[329922068,1718835038675,-151.0,0.00024654,2]
[329922069,1718835038684,-151.0,0.00024654,2]
[329922070,1718835038694,-608.08628642,0.00024655,2]
[329922071,1718835038704,-1442.75395102,0.00024655,2]
[329922072,1718835038715,-1693.11395485,0.00024656,2]
[329922073,1718835038724,-1060.14425486,0.00024656,2]
[329922074,1718835038733,-34738.77812561,0.00024656,2]
[329922075,1718835038743,-151.0,0.00024656,2]
[329922076,1718835038752,-151.0,0.00024656,2]
[329922077,1718835038761,-151.0,0.00024656,2]
[329922078,1718835038770,-151.0,0.00024656,2]
[329922079,1718835038779,-151.0,0.00024656,2]
[329922080,1718835038789,-151.0,0.00024656,2]
[329922081,1718835038798,-161.797158,0.00024656,2]
[329922082,1718835038808,-151.0,0.00024656,2]
[329922083,1718835038818,-151.0,0.00024656,2]
[329922084,1718835038827,-151.0,0.00024656,2]
[329922085,1718835038837,-151.0,0.00024656,2]
[329922086,1718835038846,-151.0,0.00024656,2]
[329922087,1718835038856,-151.0,0.00024656,2]
[329922088,1718835038865,-151.0,0.00024656,2]
[329922089,1718835038874,-151.0,0.00024656,2]
[329922090,1718835038884,-279.02432925,0.00024657,15]
[329922091,1718835038893,-203.17561514,0.00024657,5]
[329922092,1718835038902,-543.7,0.00024657,5]
[329922093,1718835038912,-500.0,0.00024657,5]
[329922094,1718835038921,-1435.25,0.00024657,5]
[329922095,1718835038931,-500.0,0.00024657,5]
[329922096,1718835038940,-500.0,0.00024657,5]
[329922097,1718835038950,-500.0,0.00024657,5]
[329922098,1718835038959,-151.0,0.00024657,2]
[329922099,1718835038968,-151.0,0.00024657,2]
[329922100,1718835038978,-151.0,0.00024657,2]
[329922101,1718835038988,-151.0,0.00024657,2]
[329922102,1718835038997,-151.0,0.00024657,2]
[329922103,1718835039006,-151.0,0.00024657,2]
[329922104,1718835039016,-500.0,0.00024657,5]
[329922105,1718835039025,-500.0,0.00024657,5]
[329922106,1718835039035,-500.0,0.00024657,5]
[329922107,1718835039045,-500.0,0.00024657,5]
[329922108,1718835039055,-240.46,0.00024657,5]
[329922109,1718835039065,-500.0,0.00024657,5]
[329922110,1718835039075,-771.33,0.00024657,5]
[329922111,1718835039085,-62.15120565,0.00024657,5]
[329922112,1718835039097,-437.84879435,0.00024657,5]
[329922113,1718835039107,-609.95,0.00024657,5]
[329922114,1718835039116,-151.0,0.00024657,2]
[329922115,1718835039126,-151.0,0.00024657,2]
[329922116,1718835039135,-151.0,0.00024657,2]
[329922117,1718835039144,-151.0,0.00024657,2]
[329922118,1718835039154,-151.0,0.00024657,2]
[329922119,1718835039165,-999.27,0.00024657,5]
[329922120,1718835039175,-232.41362741,0.00024657,5]
[329922184,1718835043592,-52.39540561,0.00024657,5]
[329922185,1718835043602,-151.0,0.00024657,2]
[329922186,1718835043612,-151.0,0.00024657,2]
[329922187,1718835043621,-1775.14384751,0.00024657,5]
[329922188,1718835043632,-1108.57615249,0.00024657,5]
[329922189,1718835043642,-151.0,0.00024657,2]
[329922191,1718835043651,-500.0,0.00024657,5]
[329922192,1718835043661,-44.74727051,0.00024657,5]
[329922193,1718835043673,-8086.27272949,0.00024657,5]
[329922194,1718835043683,-816.52,0.00024657,5]
[329922195,1718835043692,-500.0,0.00024657,5]
[329922196,1718835043702,-1386.74,0.00024657,5]
[329922197,1718835043711,-500.0,0.00024657,5]
[329922198,1718835043720,-316.71365095,0.00024657,5]
[329922199,1718835043733,-183.28634905,0.00024657,5]
[329922200,1718835043746,-313.49087623,0.00024657,5]
[329922201,1718835043758,-2757.49,0.00024657,5]
[329922202,1718835043770,-500.0,0.00024657,5]
[329922203,1718835043783,-661.85,0.00024657,5]
[329922204,1718835043796,-500.0,0.00024657,5]
[329922205,1718835043806,-678.64,0.00024657,5]
[329922206,1718835043816,-500.0,0.00024657,5]
[329922207,1718835043828,-962.26,0.00024657,5]
[329922208,1718835043840,-500.0,0.00024657,5]
[329922209,1718835043851,-4001.71,0.00024657,5]
[329922210,1718835043863,-430.87130455,0.00024657,5]
[329922211,1718835043874,-1338.62,0.00024657,5]
[329922212,1718835043886,-500.0,0.00024657,5]
[329922213,1718835043897,-151.0,0.00024657,2]
[329922214,1718835043910,-151.0,0.00024657,2]
[329922215,1718835043921,-151.0,0.00024657,2]
[329922216,1718835043932,-151.0,0.00024657,2]
[329922217,1718835043944,-151.0,0.00024657,2]
[329922218,1718835043957,-151.0,0.00024657,2]
[329922219,1718835043969,-151.0,0.00024657,2]
[329922220,1718835043981,-500.0,0.00024657,5]
[329922221,1718835043993,-151.0,0.00024657,2]
[329922222,1718835044004,-500.0,0.00024657,5]
[329922223,1718835044015,-500.0,0.00024657,5]
[329922224,1718835044026,-151.0,0.00024657,2]
[329922225,1718835044039,-500.0,0.00024657,5]
[329922226,1718835044050,-617.44,0.00024657,5]
[329922227,1718835044062,-576.7,0.00024657,5]
[329922228,1718835044074,-500.0,0.00024657,5]
[329922229,1718835044086,-500.0,0.00024657,5]
[329922230,1718835044096,-500.0,0.00024657,5]
[329922231,1718835044108,-500.0,0.00024657,5]
[329922232,1718835044119,-151.0,0.00024657,2]
[329922233,1718835044129,-151.0,0.00024657,2]
[329922234,1718835044139,-151.0,0.00024657,2]
[329922235,1718835044149,-500.0,0.00024657,5]
[329922236,1718835044160,-500.0,0.00024657,5]
[329922237,1718835044171,-1156.19,0.00024657,5]
[329922238,1718835044181,-500.0,0.00024657,5]
[329922239,1718835044194,-151.0,0.00024657,2]
[329922240,1718835044206,-151.0,0.00024657,2]
[329922241,1718835044218,-151.0,0.00024657,2]
[329922242,1718835044229,-151.0,0.00024657,2]
[329922243,1718835044241,-239.55211,0.00024657,2]
[329922244,1718835044252,-500.0,0.00024657,5]
[329922245,1718835044265,-521.04,0.00024657,5]
[329922246,1718835044279,-971.4,0.00024657,5]
[329922247,1718835044293,-154.69480861,0.0002468,2]
[329922248,1718835044305,-156.79447029,0.00024714,2]
[329922249,1718835044317,-220.90055219,0.00024797,2]
[329922250,1718835044327,-654.6337172,0.00024803,2]
[329922251,1718835044337,-654.6337172,0.00024882,2]
[329922252,1718835044353,-151.28629382,0.00024887,2]
[329922253,1718835044363,-251.0,0.000249,2]
[329922254,1718835044373,-220.90055219,0.00024903,2]
[329922255,1718835044384,-220.90055219,0.00024914,2]
[329922256,1718835044397,-157.80731331,0.00024929,2]
[329922257,1718835044409,-151.0,0.0002493,2]
[329922258,1718835044423,-151.0,0.0002493,2]
[329922259,1718835044435,-203.22228,0.0002493,2]
[329922260,1718835044446,-500.0,0.0002493,5]
[329922261,1718835044456,-500.0,0.00024931,5]
[329922262,1718835044466,-1435.25,0.00024931,5]
[329922263,1718835044477,-576.64498313,0.00024931,5]
[329922264,1718835044488,-445.65409292,0.00024931,5]
[329922265,1718835044498,-151.0,0.00024931,2]
[329922266,1718835044510,-151.0,0.00024931,2]
[329922267,1718835044522,-151.0,0.00024931,2]
[329922268,1718835044532,-151.0,0.00024931,2]
[329922269,1718835044542,-151.0,0.00024931,2]
[329922270,1718835044552,-282.779479,0.00024931,2]
[329922271,1718835044563,-500.0,0.00024931,5]
[329922272,1718835044574,-500.0,0.00024931,5]
[329922273,1718835044585,-500.0,0.00024931,5]
[329922274,1718835044596,-500.0,0.00024931,5]
[329922275,1718835044608,-240.46,0.00024931,5]
[329922276,1718835044619,-500.0,0.00024931,5]
[329922277,1718835044629,-771.33,0.00024931,5]
[329922278,1718835044641,-500.0,0.00024931,5]
[329922279,1718835044651,-609.95,0.00024931,5]
[329922280,1718835044661,-151.0,0.00024931,2]
[329922281,1718835044672,-999.27,0.00024931,5]
[329922282,1718835044682,-2883.72,0.00024931,5]
[329922283,1718835044693,-151.0,0.00024931,2]
[329922284,1718835044703,-151.0,0.00024931,2]
[329922285,1718835044713,-151.0,0.00024931,2]
[329922286,1718835044724,-500.0,0.00024931,5]
[329922287,1718835044734,-8131.02,0.00024931,5]
[329922288,1718835044745,-816.52,0.00024931,5]
[329922289,1718835044756,-500.0,0.00024931,5]
[329922290,1718835044766,-1386.74,0.00024931,5]
[329922291,1718835044776,-500.0,0.00024931,5]
[329922292,1718835044787,-500.0,0.00024931,5]
[329922293,1718835044797,-2757.49,0.00024931,5]
[329922294,1718835044808,-500.0,0.00024931,5]
[329922295,1718835044818,-661.85,0.00024931,5]
[329922296,1718835044829,-500.0,0.00024931,5]
[329922297,1718835044840,-678.64,0.00024931,5]
[329922298,1718835044851,-500.0,0.00024931,5]
[329922299,1718835044862,-962.26,0.00024931,5]
[329922300,1718835044872,-211.59536087,0.00024931,5]
[329922301,1718835044883,-4001.71,0.00024931,5]
[329922302,1718835044894,-1338.62,0.00024931,5]
[329922303,1718835044904,-500.0,0.00024931,5]
[329922304,1718835044915,-151.0,0.00024931,2]
[329922305,1718835044927,-151.0,0.00024931,2]
[329922306,1718835044938,-617.44,0.00024931,5]
[329922307,1718835044949,-576.7,0.00024931,5]
[329922308,1718835044960,-151.660399,0.00024931,5]
[329922309,1718835044970,-152.89588742,0.00024931,5]
[329922310,1718835044981,-500.0,0.00024931,5]
[329922311,1718835044992,-500.0,0.00024931,5]
[329922312,1718835045004,-151.0,0.00024931,2]
[329922313,1718835045015,-151.0,0.00024931,2]
[329922314,1718835045026,-210.366832,0.00024931,2]
[329922315,1718835045037,-500.0,0.00024931,5]
[329922316,1718835045048,-500.0,0.00024931,5]
[329922317,1718835045059,-1156.19,0.00024931,5]
[329922318,1718835045068,-500.0,0.00024931,5]
[329922319,1718835045202,-151.0,0.00024931,2]
[329922320,1718835045218,-151.0,0.00024931,2]
[329922321,1718835045227,-500.0,0.00024931,5]
[329922322,1718835045237,-521.04,0.00024931,5]
[329922323,1718835045247,-971.4,0.00024931,5]
[329922324,1718835045257,-654.6337172,0.00024945,2]
[329922325,1718835045266,-654.6337172,0.00025079,2]
[329922326,1718835045276,-654.6337172,0.00025095,2]
[329922327,1718835045285,-654.6337172,0.00025109,2]
[329922328,1718835045294,-155.0,0.0002511,10]
[329922329,1718835045303,-220.90055219,0.00025114,2]
[329922330,1718835045312,-220.90055219,0.00025119,2]
[329922331,1718835045322,-582.99366,0.000252,11]
[329922332,1718835045333,-151.0,0.000252,2]
[329922333,1718835045347,-500.0,0.00025204,5]
[329922334,1718835045356,-500.0,0.00025204,5]
[329922335,1718835045365,-500.0,0.00025205,5]
[329922336,1718835045374,-1435.25,0.00025205,5]
[329922337,1718835045383,-151.0,0.00025205,2]
[329922338,1718835045395,-151.0,0.00025205,2]
[329922339,1718835045404,-500.0,0.00025205,5]
[329922340,1718835045413,-500.0,0.00025205,5]
[329922341,1718835045422,-500.0,0.00025205,5]
[329922342,1718835045431,-240.46,0.00025205,5]
[329922343,1718835045441,-500.0,0.00025205,5]
[329922344,1718835045450,-771.33,0.00025205,5]
[329922345,1718835045460,-500.0,0.00025205,5]
[329922346,1718835045469,-609.95,0.00025205,5]
[329922347,1718835045478,-999.27,0.00025205,5]
[329922348,1718835045487,-2883.72,0.00025205,5]
[329922349,1718835045497,-151.0,0.00025205,2]
[329922350,1718835045506,-151.0,0.00025205,2]
[329922351,1718835045515,-151.0,0.00025205,2]
[329922352,1718835045524,-500.0,0.00025205,5]
[329922353,1718835045533,-547.47633095,0.00025205,5]
[329922361,1718835046605,-261.81,0.00024657,5]
[329922362,1718835046617,-612.55,0.00024657,5]
[329922363,1718835046626,-4675.73956723,0.00025205,5]
[329922364,1718835046638,-2907.80410182,0.00025205,5]
[329922365,1718835046647,-816.52,0.00025205,5]
[329922366,1718835046656,-500.0,0.00025205,5]
[329922367,1718835046665,-140.68601472,0.00025205,5]
[329922368,1718835046676,-282.5,0.00025205,5]
[329922373,1718835061389,154.81422293,9.999e-05,2]
[329922382,1718835992789,521.20194231,9.999e-05,2]
[329922383,1718836053134,-943.59528393,0.0001819,2]
[329922384,1718836054161,-1074.52602073,0.0001819,2]
[329922385,1718836054183,-1251.5,0.00018244,2]
[329922386,1718836054206,-215.3,0.00018244,2]
[329922387,1718836054231,-243.697482,0.00018947,2]
[329922388,1718836054251,-471.0,0.00019,2]
[329922389,1718836054274,-7528.26814524,0.00020261,7]
[329922434,1718836232670,-569.0,0.00018287,2]
[329922437,1718836232687,-578.2,0.00018287,2]
[329922439,1718836232699,-335.296781,0.000189,2]
[329922441,1718836232714,-269.24912565,0.000189,2]
[329922482,1718836238980,-1371.31734229,0.000189,2]
[329922483,1718836238992,-539.59557086,0.00019,2]
[329922484,1718836239004,-250.0,0.00019261,2]
[329922485,1718836239016,-319.82815104,0.00020258,2]
[329922486,1718836239028,-500.0,0.00020258,2]
[329922487,1718836239040,-500.0,0.00020258,2]
[329922488,1718836239051,-312.0589358,0.00020258,2]
[329922489,1718836239066,-187.9410642,0.00020258,2]
[329922490,1718836239079,-467.29786192,0.00020258,2]
[329922491,1718836239094,-6.49930799,0.00020258,2]
[329922492,1718836239107,-500.0,0.00020258,2]
[329922493,1718836239119,-500.0,0.00020258,2]
[329922494,1718836239131,-500.0,0.00020258,2]
[329922495,1718836239143,-500.0,0.00020258,2]
[329922496,1718836239156,-500.0,0.00020258,2]
[329922497,1718836239169,-247.10211277,0.00020261,2]
[329922498,1718836239181,-197.66979882,0.00020263,2]
[329922499,1718836239193,-500.0,0.00020263,2]
[329922500,1718836239206,-500.0,0.00020263,2]
[329922501,1718836239218,-414.29261931,0.00020263,2]
[329922502,1718836239228,-500.0,0.00020263,2]
[329922503,1718836239238,-500.0,0.00020263,2]
[329922504,1718836239248,-500.0,0.00020263,2]
[329922505,1718836239401,-500.0,0.00020263,2]
[329922506,1718836239420,-316.53596426,0.00020263,2]
[329922507,1718836239429,-500.0,0.00020263,2]
[329922508,1718836239439,-556.28194541,0.00020263,2]
[329922509,1718836239450,-500.0,0.00020263,2]
[329922510,1718836239460,-500.0,0.00020263,2]
[329922511,1718836239469,-374.44705189,0.00020263,2]
[329922512,1718836239479,-366.88458362,0.00020263,2]
[329922513,1718836239488,-1740.62927164,0.00020264,2]
[329922514,1718836239501,-974.75508017,0.00020264,2]
[329922578,1718836241075,-24075.20136166,0.00020262,7]
[329922580,1718836241087,-11422.4070293,0.00020262,7]
[329922582,1718836241099,-22184.61564819,0.00020264,2]
[329922583,1718836241108,-1147.2,0.0002108,3]
[329922585,1718836241117,-197.4,0.0002108,3]
[329922587,1718836241127,-325.99316,0.00021096,2]
[329922589,1718836241137,-159.07327946,0.00022289,2]
[329922591,1718836241149,-153.0,0.00022951,2]
[329922592,1718836241159,-159.07327945,0.00023045,2]
[329922594,1718836241169,-159.07327945,0.00023801,2]
[329922596,1718836241178,-326.03329798,0.00023872,5]
[329922598,1718836241190,-821.16670202,0.00023872,5]
[329922600,1718836241200,-197.4,0.00023872,5]
[329922601,1718836241209,-292.853427,0.00023878,2]
[329922603,1718836241219,-205.5970001,0.00023878,2]
[329922604,1718836241228,-292.853427,0.00023878,2]
[329922606,1718836241237,-205.5970001,0.00023878,2]
[329922608,1718836241247,-1975.86324894,0.000239,2]
[329922610,1718836241257,-292.853427,0.00023978,2]
[329922611,1718836241266,-136.18452448,0.00023978,2]
[329922613,1718836241278,-170.92758402,0.00023978,2]
[329922615,1718836241288,-205.5970001,0.00023978,2]
[329922617,1718836241300,-448.7020585,0.00023978,2]
[329922619,1718836241309,-291.9281691,0.0002446,2]
[329922620,1718836241319,-156.8825958,0.0002446,2]
[329922622,1718836241328,-153.0,0.0002446,2]
[329922624,1718836241338,-153.0,0.0002446,2]
[329922626,1718836241349,-153.0,0.0002446,2]
[329922628,1718836241359,-159.07327945,0.00024557,2]
[329922630,1718836241368,-825.23441337,0.00024654,2]
[329922631,1718836241377,-20000.0,0.00024654,2]
[329922633,1718836241387,-156.36793466,0.00024655,2]
[329922635,1718836241396,-300.0,0.00024656,2]
[329922636,1718836241405,-279.02432924,0.00024657,15]
[329922638,1718836241414,-500.0,0.00024657,5]
[329922640,1718836241424,-500.0,0.00024657,5]
[329922642,1718836241433,-500.0,0.00024657,5]
[329922643,1718836241443,-369.26720006,0.00024657,5]
[329922943,1718836244173,-89.42463465,0.00024657,5]
[329922945,1718836244185,-57.69105079,0.00024657,5]
[329922949,1718836244194,-334.50494871,0.00024657,5]
[329922953,1718836244206,-165.49505129,0.00024657,5]
[329922955,1718836244216,-381.85355432,0.00024657,5]
[329922957,1718836244225,-500.0,0.00024657,5]
[329922958,1718836244235,-500.0,0.00024657,5]